[Event "Titled Tuesday Blitz August 1 Early 2023"]
[White "Kleiman, Jake"]
[Black "Csonka, Balazs"]
[WhiteFideId "2020041"]
[BlackFideId "742910"]
[WhiteElo "2531"]
[BlackElo "2701"]
[Result "1/2-1/2"]
[Round "11"]
[TimeControl "180+1"]
[Date "2023.08.01"]
[WhiteClock "0:00:13"]
[BlackClock "0:00:04"]
[Board "63"]

1. e4 {[%clk 0:02:53]}  c5 {[%clk 0:02:58]} 2. c3 {[%clk 0:02:53]}  d5 {[%clk 0:02:54]} 3. exd5 {[%clk 0:02:53]}  Qxd5 {[%clk 0:02:55]} 4. d4 {[%clk 0:02:53]}  Nc6 {[%clk 0:02:55]} 5. Nf3 {[%clk 0:02:54]}  Bg4 {[%clk 0:02:46]} 6. dxc5 {[%clk 0:02:53]}  Qxc5 {[%clk 0:01:57]} 7. Be3 {[%clk 0:02:36]}  Qa5 {[%clk 0:01:54]} 8. Be2 {[%clk 0:02:28]}  Nf6 {[%clk 0:01:49]} 9. Na3 {[%clk 0:02:22]}  e6 {[%clk 0:01:42]} 10. Nc4 {[%clk 0:02:08]}  Qc7 {[%clk 0:01:41]} 11. a4 {[%clk 0:02:04]}  Nd5 {[%clk 0:01:31]} 12. Bc1 {[%clk 0:02:01]}  Be7 {[%clk 0:01:27]} 13. O-O {[%clk 0:01:59]}  O-O {[%clk 0:01:28]} 14. h3 {[%clk 0:02:00]}  Bh5 {[%clk 0:01:27]} 15. Re1 {[%clk 0:01:57]}  Rfd8 {[%clk 0:01:25]} 16. Qb3 {[%clk 0:01:55]}  Rab8 {[%clk 0:01:07]} 17. a5 {[%clk 0:01:18]}  f6 {[%clk 0:00:59]} 18. Nh2 {[%clk 0:01:02]}  Bf7 {[%clk 0:00:58]} 19. Qa4 {[%clk 0:00:49]}  e5 {[%clk 0:00:54]} 20. Bf1 {[%clk 0:00:45]}  Bf8 {[%clk 0:00:52]} 21. Nf3 {[%clk 0:00:42]}  b5 {[%clk 0:00:46]} 22. axb6 {[%clk 0:00:41]}  axb6 {[%clk 0:00:46]} 23. Qb5 {[%clk 0:00:40]}  Na7 {[%clk 0:00:46]} 24. Qa6 {[%clk 0:00:39]}  Nc6 {[%clk 0:00:44]} 25. Ne3 {[%clk 0:00:34]}  Nf4 {[%clk 0:00:38]} 26. Nf5 {[%clk 0:00:33]}  Ne6 {[%clk 0:00:34]} 27. Bc4 {[%clk 0:00:30]}  Na5 {[%clk 0:00:32]} 28. Ba2 {[%clk 0:00:29]}  Nc5 {[%clk 0:00:27]} 29. Bxf7+ {[%clk 0:00:27]}  Qxf7 {[%clk 0:00:28]} 30. Qe2 {[%clk 0:00:27]}  Ncb3 {[%clk 0:00:22]} 31. Ra4 {[%clk 0:00:25]}  Nxc1 {[%clk 0:00:21]} 32. Rxc1 {[%clk 0:00:25]}  g6 {[%clk 0:00:21]} 33. Ne3 {[%clk 0:00:24]}  Nb3 {[%clk 0:00:20]} 34. Rd1 {[%clk 0:00:23]}  Nc5 {[%clk 0:00:19]} 35. Raa1 {[%clk 0:00:23]}  Be7 {[%clk 0:00:13]} 36. c4 {[%clk 0:00:23]}  e4 {[%clk 0:00:12]} 37. Nd4 {[%clk 0:00:22]}  f5 {[%clk 0:00:09]} 38. Nd5 {[%clk 0:00:22]}  Rxd5 {[%clk 0:00:05]} 39. cxd5 {[%clk 0:00:22]}  Qxd5 {[%clk 0:00:06]} 40. Qb5 {[%clk 0:00:16]}  Rd8 {[%clk 0:00:03]} 41. Nc6 {[%clk 0:00:15]}  Qxd1+ {[%clk 0:00:03]} 42. Rxd1 {[%clk 0:00:15]}  Rxd1+ {[%clk 0:00:04]} 43. Kh2 {[%clk 0:00:16]}  Bd6+ {[%clk 0:00:05]} 44. g3 {[%clk 0:00:17]}  Rd2 {[%clk 0:00:05]} 45. Kg1 {[%clk 0:00:16]}  Nd3 {[%clk 0:00:03]} 46. Qd5+ {[%clk 0:00:16]}  Kg7 {[%clk 0:00:03]} 47. Qxd6 {[%clk 0:00:16]}  e3 {[%clk 0:00:03]} 48. fxe3 {[%clk 0:00:15]}  Rd1+ {[%clk 0:00:03]} 49. Kh2 {[%clk 0:00:14]}  Rd2+ {[%clk 0:00:03]} 50. Kg1 {[%clk 0:00:14]}  Rd1+ {[%clk 0:00:04]} 51. Kh2 {[%clk 0:00:13]}  Rd2+ {[%clk 0:00:04]} 52. Kg1 {[%clk 0:00:13]} 1/2-1/2


[Site "https://www.chess.com"]

[Event "Titled Tuesday Blitz August 1 Early 2023"]
[White "Berezin, Viktor"]
[Black "Oleksiyenko, Mykhaylo"]
[WhiteFideId "14107872"]
[BlackFideId "4152417"]
[WhiteElo "2527"]
[BlackElo "2685"]
[Result "0-1"]
[Round "11"]
[TimeControl "180+1"]
[Date "2023.08.01"]
[WhiteClock "0:00:01"]
[BlackClock "0:00:16"]
[Board "64"]

1. d4 {[%clk 0:02:57]}  d5 {[%clk 0:02:52]} 2. Nf3 {[%clk 0:02:56]}  Nf6 {[%clk 0:02:51]} 3. c4 {[%clk 0:02:56]}  e6 {[%clk 0:02:51]} 4. g3 {[%clk 0:02:56]}  Be7 {[%clk 0:02:50]} 5. Bg2 {[%clk 0:02:56]}  O-O {[%clk 0:02:50]} 6. O-O {[%clk 0:02:56]}  c6 {[%clk 0:02:50]} 7. Qc2 {[%clk 0:02:56]}  dxc4 {[%clk 0:02:51]} 8. Qxc4 {[%clk 0:02:56]}  b5 {[%clk 0:02:51]} 9. Qc2 {[%clk 0:02:56]}  Bb7 {[%clk 0:02:52]} 10. Bf4 {[%clk 0:02:53]}  Nbd7 {[%clk 0:02:51]} 11. Nbd2 {[%clk 0:02:50]}  c5 {[%clk 0:02:50]} 12. dxc5 {[%clk 0:02:47]}  Nxc5 {[%clk 0:02:50]} 13. Nb3 {[%clk 0:02:43]}  Be4 {[%clk 0:02:47]} 14. Qd1 {[%clk 0:02:18]}  Qxd1 {[%clk 0:02:39]} 15. Rfxd1 {[%clk 0:02:16]}  Bc2 {[%clk 0:02:35]} 16. Re1 {[%clk 0:01:53]}  Nxb3 {[%clk 0:02:29]} 17. axb3 {[%clk 0:01:52]}  Bxb3 {[%clk 0:02:29]} 18. Nd4 {[%clk 0:01:51]}  Bd5 {[%clk 0:02:24]} 19. Nxb5 {[%clk 0:01:44]}  Bxg2 {[%clk 0:02:15]} 20. Kxg2 {[%clk 0:01:45]}  Nd5 {[%clk 0:02:00]} 21. Rxa7 {[%clk 0:01:41]}  Nxf4+ {[%clk 0:01:44]} 22. gxf4 {[%clk 0:01:39]}  Bf6 {[%clk 0:01:38]} 23. b4 {[%clk 0:00:56]}  Rab8 {[%clk 0:01:27]} 24. Nd6 {[%clk 0:00:38]}  Rxb4 {[%clk 0:01:24]} 25. Rc1 {[%clk 0:00:34]}  Rxf4 {[%clk 0:01:17]} 26. e3 {[%clk 0:00:24]}  Rg4+ {[%clk 0:01:13]} 27. Kf3 {[%clk 0:00:23]}  Rh4 {[%clk 0:01:07]} 28. Kg2 {[%clk 0:00:14]}  Be5 {[%clk 0:01:05]} 29. Nc4 {[%clk 0:00:07]}  Rxh2+ {[%clk 0:00:56]} 30. Kf3 {[%clk 0:00:07]}  Bf6 {[%clk 0:00:50]} 31. Nb6 {[%clk 0:00:05]}  Bh4 {[%clk 0:00:47]} 32. Rc2 {[%clk 0:00:05]}  h5 {[%clk 0:00:43]} 33. Nd7 {[%clk 0:00:04]}  Rd8 {[%clk 0:00:42]} 34. Ne5 {[%clk 0:00:04]}  Bf6 {[%clk 0:00:22]} 35. Nxf7 {[%clk 0:00:03]}  Rf8 {[%clk 0:00:22]} 36. Nd6 {[%clk 0:00:02]}  Be5+ {[%clk 0:00:20]} 37. Ke4 {[%clk 0:00:01]}  Bxd6 {[%clk 0:00:19]} 38. Rc6 {[%clk 0:00:02]}  Bb8 {[%clk 0:00:16]} 39. Rb7 {[%clk 0:00:02]}  Rhxf2 {[%clk 0:00:16]} 40. Rxe6 {[%clk 0:00:02]}  h4 {[%clk 0:00:16]} 41. Ree7 {[%clk 0:00:03]}  Rg2 {[%clk 0:00:14]} 42. Rb1 {[%clk 0:00:01]}  h3 {[%clk 0:00:14]} 43. Rh1 {[%clk 0:00:02]}  h2 {[%clk 0:00:14]} 44. Rb7 {[%clk 0:00:03]}  Rg1 {[%clk 0:00:15]} 45. Rb1 {[%clk 0:00:03]}  Rxb1 {[%clk 0:00:14]} 46. Rxb1 {[%clk 0:00:03]}  Bg3 {[%clk 0:00:14]} 47. Kd3 {[%clk 0:00:03]}  Rf2 {[%clk 0:00:15]} 48. e4 {[%clk 0:00:03]}  Rg2 {[%clk 0:00:15]} 49. Ke3 {[%clk 0:00:01]}  Rg1 {[%clk 0:00:16]} 0-1


[Site "https://www.chess.com"]

[Event "Titled Tuesday Blitz August 1 Early 2023"]
[White "Skliarov, Viktor"]
[Black "Ordekalog"]
[WhiteFideId "14106736"]
[WhiteElo "2651"]
[BlackElo "2528"]
[Result "1-0"]
[Round "11"]
[TimeControl "180+1"]
[Date "2023.08.01"]
[WhiteClock "0:00:06"]
[BlackClock "0:00:08"]
[Board "65"]

1. e4 {[%clk 0:03:00]}  c5 {[%clk 0:02:59]} 2. Nf3 {[%clk 0:03:00]}  e6 {[%clk 0:02:58]} 3. c3 {[%clk 0:02:59]}  d5 {[%clk 0:02:58]} 4. e5 {[%clk 0:02:58]}  d4 {[%clk 0:02:56]} 5. Bb5+ {[%clk 0:02:56]}  Bd7 {[%clk 0:02:55]} 6. Bxd7+ {[%clk 0:02:56]}  Qxd7 {[%clk 0:02:55]} 7. d3 {[%clk 0:02:56]}  Nc6 {[%clk 0:02:53]} 8. c4 {[%clk 0:02:54]}  Nh6 {[%clk 0:02:50]} 9. Bxh6 {[%clk 0:02:49]}  gxh6 {[%clk 0:02:50]} 10. O-O {[%clk 0:02:49]}  Rg8 {[%clk 0:02:50]} 11. Nbd2 {[%clk 0:02:43]}  Bg7 {[%clk 0:02:39]} 12. Qe2 {[%clk 0:02:41]}  O-O-O {[%clk 0:02:38]} 13. a3 {[%clk 0:02:40]}  Qc7 {[%clk 0:02:33]} 14. Rfe1 {[%clk 0:02:40]}  a5 {[%clk 0:02:32]} 15. Ne4 {[%clk 0:01:55]}  Nxe5 {[%clk 0:02:21]} 16. b4 {[%clk 0:01:55]}  cxb4 {[%clk 0:01:58]} 17. axb4 {[%clk 0:01:53]}  axb4 {[%clk 0:01:59]} 18. c5 {[%clk 0:01:28]}  Kb8 {[%clk 0:01:34]} 19. Nd6 {[%clk 0:01:13]}  Nxf3+ {[%clk 0:01:22]} 20. Qxf3 {[%clk 0:01:13]}  Rd7 {[%clk 0:01:12]} 21. Ra4 {[%clk 0:00:50]}  Qxc5 {[%clk 0:01:08]} 22. Rea1 {[%clk 0:00:49]}  Kc7 {[%clk 0:00:28]} 23. Ne4 {[%clk 0:00:30]}  Qc6 {[%clk 0:00:23]} 24. Rxb4 {[%clk 0:00:25]}  Kb8 {[%clk 0:00:20]} 25. Rab1 {[%clk 0:00:13]}  Rc8 {[%clk 0:00:18]} 26. Qg3+ {[%clk 0:00:11]}  e5 {[%clk 0:00:17]} 27. h4 {[%clk 0:00:09]}  f5 {[%clk 0:00:17]} 28. Nd2 {[%clk 0:00:08]}  Qg6 {[%clk 0:00:09]} 29. Qf3 {[%clk 0:00:07]}  e4 {[%clk 0:00:08]} 30. dxe4 {[%clk 0:00:07]}  fxe4 {[%clk 0:00:09]} 31. Nxe4 {[%clk 0:00:08]}  d3 {[%clk 0:00:08]} 32. Nc5 {[%clk 0:00:07]}  Rxc5 {[%clk 0:00:07]} 33. Rxb7+ {[%clk 0:00:08]}  Kc8 {[%clk 0:00:08]} 34. Rb8+ {[%clk 0:00:08]}  Kc7 {[%clk 0:00:08]} 35. R1b7+ {[%clk 0:00:08]}  Kd6 {[%clk 0:00:08]} 36. Rb6+ {[%clk 0:00:08]}  Kc7 {[%clk 0:00:08]} 37. Qb7# {[%clk 0:00:06]} 1-0


[Site "https://www.chess.com"]

[Event "Titled Tuesday Blitz August 1 Early 2023"]
[White "Arias, Juan Cruz"]
[Black "Estrada Nieto, Julian"]
[WhiteFideId "118540"]
[BlackFideId "5101018"]
[WhiteElo "2631"]
[BlackElo "2523"]
[Result "1/2-1/2"]
[Round "11"]
[TimeControl "180+1"]
[Date "2023.08.01"]
[WhiteClock "0:00:18"]
[BlackClock "0:00:36"]
[Board "66"]

1. d4 {[%clk 0:03:00]}  d5 {[%clk 0:03:00]} 2. Nf3 {[%clk 0:03:00]}  Nf6 {[%clk 0:02:59]} 3. e3 {[%clk 0:03:00]}  e6 {[%clk 0:02:59]} 4. Bd3 {[%clk 0:02:59]}  c5 {[%clk 0:02:59]} 5. b3 {[%clk 0:02:58]}  Nc6 {[%clk 0:03:00]} 6. Bb2 {[%clk 0:02:58]}  Bd6 {[%clk 0:02:59]} 7. O-O {[%clk 0:02:58]}  O-O {[%clk 0:03:00]} 8. a3 {[%clk 0:02:56]}  b6 {[%clk 0:02:58]} 9. Nbd2 {[%clk 0:02:55]}  Bb7 {[%clk 0:02:58]} 10. Qe2 {[%clk 0:02:54]}  Ne7 {[%clk 0:02:57]} 11. Ne5 {[%clk 0:02:48]}  Ne4 {[%clk 0:02:54]} 12. Bxe4 {[%clk 0:02:31]}  dxe4 {[%clk 0:02:53]} 13. Ndc4 {[%clk 0:02:21]}  Bc7 {[%clk 0:02:48]} 14. dxc5 {[%clk 0:02:21]}  bxc5 {[%clk 0:02:45]} 15. Rfd1 {[%clk 0:02:20]}  Nd5 {[%clk 0:02:38]} 16. Qg4 {[%clk 0:02:05]}  f5 {[%clk 0:02:36]} 17. Qe2 {[%clk 0:01:59]}  Qe7 {[%clk 0:02:30]} 18. Nd2 {[%clk 0:01:40]}  Rfd8 {[%clk 0:02:06]} 19. Qb5 {[%clk 0:01:38]}  Nb6 {[%clk 0:01:57]} 20. Ndc4 {[%clk 0:01:29]}  Nxc4 {[%clk 0:01:46]} 21. Nxc4 {[%clk 0:01:24]}  Bd5 {[%clk 0:01:43]} 22. Nd2 {[%clk 0:00:57]}  Qd7 {[%clk 0:01:29]} 23. Qxd7 {[%clk 0:00:55]}  Rxd7 {[%clk 0:01:29]} 24. Nc4 {[%clk 0:00:43]}  Rad8 {[%clk 0:01:26]} 25. Ne5 {[%clk 0:00:43]}  Bxe5 {[%clk 0:01:22]} 26. Bxe5 {[%clk 0:00:44]}  Bc6 {[%clk 0:01:22]} 27. Rxd7 {[%clk 0:00:43]}  Rxd7 {[%clk 0:01:22]} 28. Kf1 {[%clk 0:00:43]}  Rd2 {[%clk 0:01:20]} 29. Rc1 {[%clk 0:00:42]}  Bb5+ {[%clk 0:01:15]} 30. Kg1 {[%clk 0:00:42]}  c4 {[%clk 0:01:11]} 31. Bc3 {[%clk 0:00:38]}  Rd5 {[%clk 0:01:09]} 32. b4 {[%clk 0:00:30]}  Ba4 {[%clk 0:01:07]} 33. Kf1 {[%clk 0:00:31]}  e5 {[%clk 0:01:03]} 34. Ke2 {[%clk 0:00:31]}  Kf7 {[%clk 0:01:03]} 35. Rd1 {[%clk 0:00:29]}  Ke6 {[%clk 0:01:02]} 36. Rxd5 {[%clk 0:00:28]}  Kxd5 {[%clk 0:01:02]} 37. Kd2 {[%clk 0:00:29]}  g5 {[%clk 0:01:02]} 38. Kc1 {[%clk 0:00:29]}  f4 {[%clk 0:01:01]} 39. Be1 {[%clk 0:00:29]}  Bd7 {[%clk 0:00:56]} 40. Kb2 {[%clk 0:00:29]}  g4 {[%clk 0:00:47]} 41. Kc3 {[%clk 0:00:28]}  Ba4 {[%clk 0:00:46]} 42. Kd2 {[%clk 0:00:27]}  h5 {[%clk 0:00:46]} 43. Kc3 {[%clk 0:00:27]}  h4 {[%clk 0:00:46]} 44. g3 {[%clk 0:00:18]}  fxg3 {[%clk 0:00:42]} 45. fxg3 {[%clk 0:00:17]}  h3 {[%clk 0:00:40]} 46. Bd2 {[%clk 0:00:17]}  a6 {[%clk 0:00:37]} 47. Bc1 {[%clk 0:00:17]}  Bb5 {[%clk 0:00:36]} 48. Bb2 {[%clk 0:00:18]}  Ba4 {[%clk 0:00:37]} 49. Kd2 {[%clk 0:00:17]}  Bb5 {[%clk 0:00:35]} 50. Kc3 {[%clk 0:00:17]}  Ba4 {[%clk 0:00:35]} 51. Kd2 {[%clk 0:00:18]}  Bb5 {[%clk 0:00:36]} 52. Kc3 {[%clk 0:00:18]} 1/2-1/2


[Site "https://www.chess.com"]

[Event "Titled Tuesday Blitz August 1 Early 2023"]
[White "Burmakin, Vladimir"]
[Black "Erzhanov, Arman"]
[WhiteFideId "4105109"]
[BlackFideId "4138821"]
[WhiteElo "2604"]
[BlackElo "2518"]
[Result "1-0"]
[Round "11"]
[TimeControl "180+1"]
[Date "2023.08.01"]
[WhiteClock "0:00:10"]
[BlackClock "0:00:14"]
[Board "67"]

1. c4 {[%clk 0:02:58]}  d6 {[%clk 0:02:59]} 2. g3 {[%clk 0:02:57]}  e5 {[%clk 0:02:59]} 3. Bg2 {[%clk 0:02:58]}  Nc6 {[%clk 0:02:59]} 4. Nc3 {[%clk 0:02:58]}  Be6 {[%clk 0:02:58]} 5. d3 {[%clk 0:02:58]}  g6 {[%clk 0:02:58]} 6. h4 {[%clk 0:02:55]}  h6 {[%clk 0:02:57]} 7. Rb1 {[%clk 0:02:51]}  a5 {[%clk 0:02:56]} 8. a3 {[%clk 0:02:51]}  Bg7 {[%clk 0:02:55]} 9. b4 {[%clk 0:02:50]}  axb4 {[%clk 0:02:55]} 10. axb4 {[%clk 0:02:50]}  Qd7 {[%clk 0:02:56]} 11. b5 {[%clk 0:02:50]}  Nd8 {[%clk 0:02:56]} 12. Bb2 {[%clk 0:02:48]}  Nf6 {[%clk 0:02:52]} 13. e3 {[%clk 0:02:47]}  O-O {[%clk 0:02:51]} 14. Nge2 {[%clk 0:02:46]}  Ng4 {[%clk 0:02:47]} 15. O-O {[%clk 0:02:42]}  f5 {[%clk 0:02:47]} 16. Nd5 {[%clk 0:02:38]}  g5 {[%clk 0:02:41]} 17. hxg5 {[%clk 0:02:36]}  hxg5 {[%clk 0:02:42]} 18. Qd2 {[%clk 0:02:30]}  Ra2 {[%clk 0:02:20]} 19. f3 {[%clk 0:02:25]}  Nf6 {[%clk 0:02:15]} 20. Nxf6+ {[%clk 0:02:23]}  Bxf6 {[%clk 0:02:15]} 21. Ra1 {[%clk 0:02:22]}  Rxa1 {[%clk 0:02:12]} 22. Rxa1 {[%clk 0:02:18]}  d5 {[%clk 0:02:11]} 23. cxd5 {[%clk 0:02:10]}  Bxd5 {[%clk 0:02:10]} 24. Qb4 {[%clk 0:01:56]}  Be6 {[%clk 0:01:54]} 25. Rd1 {[%clk 0:01:54]}  Nf7 {[%clk 0:01:45]} 26. d4 {[%clk 0:01:49]}  Rd8 {[%clk 0:01:35]} 27. Rd2 {[%clk 0:01:28]}  Be7 {[%clk 0:01:25]} 28. Qc3 {[%clk 0:01:24]}  Qxb5 {[%clk 0:01:14]} 29. dxe5 {[%clk 0:01:17]}  Rxd2 {[%clk 0:01:07]} 30. Qxd2 {[%clk 0:01:16]}  Nxe5 {[%clk 0:01:01]} 31. Nd4 {[%clk 0:01:13]}  Qd7 {[%clk 0:00:43]} 32. Qc3 {[%clk 0:00:56]}  Bf6 {[%clk 0:00:37]} 33. Nxe6 {[%clk 0:00:16]}  Qxe6 {[%clk 0:00:37]} 34. Qxc7 {[%clk 0:00:16]}  Nxf3+ {[%clk 0:00:35]} 35. Kf2 {[%clk 0:00:15]}  Bxb2 {[%clk 0:00:28]} 36. Qb8+ {[%clk 0:00:13]}  Kh7 {[%clk 0:00:23]} 37. Qxb7+ {[%clk 0:00:13]}  Kg6 {[%clk 0:00:21]} 38. Bxf3 {[%clk 0:00:14]}  f4 {[%clk 0:00:19]} 39. gxf4 {[%clk 0:00:13]}  gxf4 {[%clk 0:00:19]} 40. Qxb2 {[%clk 0:00:11]}  Qxe3+ {[%clk 0:00:18]} 41. Kg2 {[%clk 0:00:11]}  Qe5 {[%clk 0:00:14]} 42. Qxe5 {[%clk 0:00:10]} 1-0


[Site "https://www.chess.com"]

[Event "Titled Tuesday Blitz August 1 Early 2023"]
[White "Tikhonov, Viacheslav"]
[Black "Vaibhav Jayant Raut"]
[WhiteFideId "44196407"]
[BlackFideId "5089034"]
[WhiteElo "2518"]
[BlackElo "2588"]
[Result "1/2-1/2"]
[Round "11"]
[TimeControl "180+1"]
[Date "2023.08.01"]
[WhiteClock "0:00:08"]
[BlackClock "0:00:17"]
[Board "68"]

1. e4 {[%clk 0:03:00]}  c5 {[%clk 0:02:29]} 2. Nf3 {[%clk 0:03:00]}  Nc6 {[%clk 0:02:27]} 3. d4 {[%clk 0:03:00]}  cxd4 {[%clk 0:02:28]} 4. Nxd4 {[%clk 0:03:00]}  Nf6 {[%clk 0:02:27]} 5. Nc3 {[%clk 0:03:00]}  e5 {[%clk 0:01:59]} 6. Ndb5 {[%clk 0:03:00]}  d6 {[%clk 0:01:59]} 7. Bg5 {[%clk 0:02:59]}  a6 {[%clk 0:01:59]} 8. Na3 {[%clk 0:02:59]}  b5 {[%clk 0:02:00]} 9. Nd5 {[%clk 0:02:59]}  Be7 {[%clk 0:02:00]} 10. Bxf6 {[%clk 0:03:00]}  Bxf6 {[%clk 0:02:01]} 11. c3 {[%clk 0:03:00]}  O-O {[%clk 0:02:01]} 12. Nc2 {[%clk 0:02:57]}  Be6 {[%clk 0:02:01]} 13. a4 {[%clk 0:02:55]}  bxa4 {[%clk 0:02:01]} 14. Rxa4 {[%clk 0:02:48]}  a5 {[%clk 0:02:01]} 15. Bc4 {[%clk 0:02:47]}  Bg5 {[%clk 0:02:01]} 16. h4 {[%clk 0:02:43]}  Bh6 {[%clk 0:02:01]} 17. g4 {[%clk 0:02:43]}  Bf4 {[%clk 0:02:01]} 18. Qf3 {[%clk 0:02:36]}  Rb8 {[%clk 0:01:56]} 19. b3 {[%clk 0:02:36]}  Bd7 {[%clk 0:01:49]} 20. Ra2 {[%clk 0:02:32]}  a4 {[%clk 0:01:47]} 21. b4 {[%clk 0:02:11]}  Rc8 {[%clk 0:01:43]} 22. Ba6 {[%clk 0:02:05]}  Ra8 {[%clk 0:01:39]} 23. Bb5 {[%clk 0:01:55]}  Nxb4 {[%clk 0:01:37]} 24. Ncxb4 {[%clk 0:01:48]}  Bxb5 {[%clk 0:01:37]} 25. Nxf4 {[%clk 0:01:45]}  exf4 {[%clk 0:01:36]} 26. Qxf4 {[%clk 0:01:45]}  Bc4 {[%clk 0:01:35]} 27. Ra3 {[%clk 0:01:39]}  Bb3 {[%clk 0:01:35]} 28. h5 {[%clk 0:01:32]}  Rc8 {[%clk 0:01:33]} 29. Rh3 {[%clk 0:01:13]}  Re8 {[%clk 0:01:31]} 30. h6 {[%clk 0:01:13]}  d5 {[%clk 0:01:16]} 31. e5 {[%clk 0:01:06]}  Qe7 {[%clk 0:01:06]} 32. hxg7 {[%clk 0:01:00]}  Qxe5+ {[%clk 0:01:06]} 33. Qxe5 {[%clk 0:00:59]}  Rxe5+ {[%clk 0:01:07]} 34. Re3 {[%clk 0:00:58]}  Rxe3+ {[%clk 0:01:06]} 35. fxe3 {[%clk 0:00:59]}  Kxg7 {[%clk 0:01:01]} 36. Kd2 {[%clk 0:00:57]}  Kf6 {[%clk 0:00:59]} 37. Ra1 {[%clk 0:00:54]}  Kg5 {[%clk 0:00:58]} 38. Rf1 {[%clk 0:00:54]}  Kxg4 {[%clk 0:00:53]} 39. Rxf7 {[%clk 0:00:50]}  h5 {[%clk 0:00:54]} 40. Nd3 {[%clk 0:00:45]}  h4 {[%clk 0:00:50]} 41. Rg7+ {[%clk 0:00:42]}  Kf5 {[%clk 0:00:50]} 42. Rh7 {[%clk 0:00:42]}  Rg8 {[%clk 0:00:47]} 43. Rxh4 {[%clk 0:00:34]}  Rg2+ {[%clk 0:00:47]} 44. Ke1 {[%clk 0:00:30]}  Rc2 {[%clk 0:00:46]} 45. Nc5 {[%clk 0:00:19]}  Rxc3 {[%clk 0:00:44]} 46. Nxa4 {[%clk 0:00:18]}  Rxe3+ {[%clk 0:00:44]} 47. Kd2 {[%clk 0:00:17]}  Rg3 {[%clk 0:00:42]} 48. Nc3 {[%clk 0:00:16]}  Ke5 {[%clk 0:00:41]} 49. Rh5+ {[%clk 0:00:16]}  Kd6 {[%clk 0:00:40]} 50. Rh6+ {[%clk 0:00:15]}  Kc5 {[%clk 0:00:40]} 51. Rh5 {[%clk 0:00:15]}  Rg2+ {[%clk 0:00:35]} 52. Kd3 {[%clk 0:00:16]}  Bc2+ {[%clk 0:00:32]} 53. Ke3 {[%clk 0:00:15]}  Bb3 {[%clk 0:00:32]} 54. Ne4+ {[%clk 0:00:14]}  Kb4 {[%clk 0:00:31]} 55. Nd2 {[%clk 0:00:13]}  Bc4 {[%clk 0:00:29]} 56. Rh4 {[%clk 0:00:12]}  Rg3+ {[%clk 0:00:29]} 57. Kf2 {[%clk 0:00:11]}  Ra3 {[%clk 0:00:28]} 58. Ke1 {[%clk 0:00:10]}  Ra1+ {[%clk 0:00:28]} 59. Kf2 {[%clk 0:00:10]}  Ra2 {[%clk 0:00:29]} 60. Ke3 {[%clk 0:00:09]}  Kc3 {[%clk 0:00:27]} 61. Nf3 {[%clk 0:00:08]}  Re2+ {[%clk 0:00:26]} 62. Kf4 {[%clk 0:00:08]}  d4 {[%clk 0:00:26]} 63. Nxd4 {[%clk 0:00:07]}  Kxd4 {[%clk 0:00:26]} 64. Kf3+ {[%clk 0:00:07]}  Kd3 {[%clk 0:00:20]} 65. Rxc4 {[%clk 0:00:08]}  Re3+ {[%clk 0:00:20]} 66. Kf2 {[%clk 0:00:07]}  Re8 {[%clk 0:00:21]} 67. Rf4 {[%clk 0:00:07]}  Kd2 {[%clk 0:00:21]} 68. Rf3 {[%clk 0:00:07]}  Rd8 {[%clk 0:00:20]} 69. Rf7 {[%clk 0:00:07]}  Rd6 {[%clk 0:00:20]} 70. Kg3 {[%clk 0:00:08]}  Re6 {[%clk 0:00:20]} 71. Kf4 {[%clk 0:00:08]}  Kd3 {[%clk 0:00:17]} 72. Kf5 {[%clk 0:00:08]} 1/2-1/2


[Site "https://www.chess.com"]

[Event "Titled Tuesday Blitz August 1 Early 2023"]
[White "Vyatkin, Dmitry"]
[Black "Sturt, Raven"]
[WhiteFideId "4171900"]
[BlackFideId "2007304"]
[WhiteElo "2515"]
[BlackElo "2578"]
[Result "0-1"]
[Round "11"]
[TimeControl "180+1"]
[Date "2023.08.01"]
[WhiteClock "0:00:33"]
[BlackClock "0:01:45"]
[Board "69"]

1. d4 {[%clk 0:02:54]}  f5 {[%clk 0:02:59]} 2. Bg5 {[%clk 0:02:52]}  g6 {[%clk 0:02:59]} 3. h4 {[%clk 0:02:49]}  h6 {[%clk 0:02:57]} 4. Bf4 {[%clk 0:02:41]}  Bg7 {[%clk 0:02:56]} 5. Nc3 {[%clk 0:02:37]}  Nf6 {[%clk 0:02:56]} 6. Qd2 {[%clk 0:02:35]}  d6 {[%clk 0:02:47]} 7. O-O-O {[%clk 0:02:34]}  Nc6 {[%clk 0:02:47]} 8. Nf3 {[%clk 0:02:34]}  Rb8 {[%clk 0:02:41]} 9. d5 {[%clk 0:02:33]}  e5 {[%clk 0:02:41]} 10. dxe6 {[%clk 0:02:22]}  Bxe6 {[%clk 0:02:40]} 11. Re1 {[%clk 0:02:03]}  Ne4 {[%clk 0:02:34]} 12. Nxe4 {[%clk 0:01:58]}  fxe4 {[%clk 0:02:34]} 13. Ng1 {[%clk 0:01:56]}  Qf6 {[%clk 0:02:28]} 14. c3 {[%clk 0:01:56]}  b5 {[%clk 0:02:25]} 15. e3 {[%clk 0:01:36]}  b4 {[%clk 0:02:22]} 16. c4 {[%clk 0:01:37]}  b3 {[%clk 0:02:16]} 17. a3 {[%clk 0:01:36]}  O-O {[%clk 0:02:09]} 18. Ne2 {[%clk 0:01:24]}  Bxc4 {[%clk 0:02:02]} 19. Nc3 {[%clk 0:01:24]}  Bxf1 {[%clk 0:02:02]} 20. Rexf1 {[%clk 0:01:24]}  Qe6 {[%clk 0:01:56]} 21. Rd1 {[%clk 0:01:02]}  Rf5 {[%clk 0:01:47]} 22. Kb1 {[%clk 0:00:59]}  Rc5 {[%clk 0:01:46]} 23. Rc1 {[%clk 0:00:33]}  Na5 {[%clk 0:01:45]} 0-1


[Site "https://www.chess.com"]

[Event "Titled Tuesday Blitz August 1 Early 2023"]
[White "Pastar, Slaven"]
[Black "Nareks, Matic"]
[WhiteFideId "14402718"]
[BlackFideId "14629526"]
[WhiteElo "2571"]
[BlackElo "2507"]
[Result "0-1"]
[Round "11"]
[TimeControl "180+1"]
[Date "2023.08.01"]
[WhiteClock "0:00:39"]
[BlackClock "0:01:41"]
[Board "70"]

1. b3 {[%clk 0:03:00]}  e5 {[%clk 0:02:59]} 2. Bb2 {[%clk 0:03:00]}  Nc6 {[%clk 0:03:00]} 3. Nf3 {[%clk 0:03:00]}  Bd6 {[%clk 0:02:57]} 4. d4 {[%clk 0:02:54]}  exd4 {[%clk 0:02:56]} 5. Nxd4 {[%clk 0:02:53]}  Nxd4 {[%clk 0:02:56]} 6. Qxd4 {[%clk 0:02:50]}  Nf6 {[%clk 0:02:56]} 7. Nc3 {[%clk 0:02:50]}  O-O {[%clk 0:02:56]} 8. Nd5 {[%clk 0:02:47]}  Ne8 {[%clk 0:02:42]} 9. O-O-O {[%clk 0:02:38]}  c6 {[%clk 0:02:40]} 10. Ne3 {[%clk 0:02:36]}  Be7 {[%clk 0:02:38]} 11. Qf4 {[%clk 0:02:17]}  Bg5 {[%clk 0:02:33]} 12. Qg3 {[%clk 0:02:16]}  d5 {[%clk 0:02:26]} 13. Kb1 {[%clk 0:02:14]}  Bf6 {[%clk 0:02:24]} 14. Bxf6 {[%clk 0:02:05]}  Qxf6 {[%clk 0:02:24]} 15. h4 {[%clk 0:02:00]}  Nd6 {[%clk 0:02:21]} 16. Ng4 {[%clk 0:01:47]}  Bxg4 {[%clk 0:02:19]} 17. Qxg4 {[%clk 0:01:46]}  Ne4 {[%clk 0:02:19]} 18. Qf3 {[%clk 0:01:09]}  Nxf2 {[%clk 0:02:12]} 19. Qxf6 {[%clk 0:01:05]}  gxf6 {[%clk 0:02:11]} 20. Rd3 {[%clk 0:01:02]}  Nxh1 {[%clk 0:02:09]} 21. Rf3 {[%clk 0:01:02]}  Kh8 {[%clk 0:02:07]} 22. g4 {[%clk 0:00:58]}  Rg8 {[%clk 0:02:07]} 23. Bh3 {[%clk 0:00:58]}  Rae8 {[%clk 0:02:01]} 24. e3 {[%clk 0:00:59]}  f5 {[%clk 0:01:58]} 25. g5 {[%clk 0:00:54]}  f4 {[%clk 0:01:56]} 26. exf4 {[%clk 0:00:54]}  Re2 {[%clk 0:01:50]} 27. Bf1 {[%clk 0:00:50]}  Re1+ {[%clk 0:01:48]} 28. Kb2 {[%clk 0:00:50]}  Rge8 {[%clk 0:01:49]} 29. Bg2 {[%clk 0:00:43]}  R8e2 {[%clk 0:01:42]} 30. Bh3 {[%clk 0:00:39]}  Re3 {[%clk 0:01:41]} 0-1


[Site "https://www.chess.com"]